bitfinex/quotes_ETHUSD_20251108
["timestamp","ask_amount","ask_price","bid_price","bid_amount"]
[1762589106291,0.002,3449.2,3449.1,0.5521]
[1762589107419,0.002,3449.2,3449.1,3.45140706]
[1762589107994,0.002,3449.2,3449.1,3.90950706]
[1762589110902,0.002,3449.2,3449.1,0.5521]
[1762589111300,0.002,3449.2,3449.0,0.001]
[1762589111501,0.482,3449.1,3449.0,0.001]
[1762589111701,9.68172142,3449.1,3449.0,0.001]
[1762589112692,10.08183055,3449.1,3449.0,0.001]
[1762589113998,10.86268701,3449.1,3449.0,0.001]
[1762589114397,10.08183055,3449.1,3449.0,0.001]
[1762589114591,11.932819,3449.1,3449.0,0.001]
[1762589115608,13.49633446,3449.1,3449.0,0.001]
[1762589116204,11.12720587,3449.1,3449.0,0.001]
[1762589116598,8.22789881,3449.1,3449.0,0.001]
[1762589116797,11.12720587,3449.1,3449.0,0.001]
[1762589118452,8.22789881,3449.1,3449.0,0.001]
[1762589118602,2.04191349,3449.1,3449.0,0.4575]
[1762589118795,0.1448,3449.1,3449.0,0.4575]
[1762589124977,0.6268,3449.1,3449.0,0.001]
[1762589125345,1.1186,3449.1,3449.0,0.001]
[1762589125730,0.6288,3449.1,3449.0,0.001]
[1762589126569,0.1468,3449.1,3449.0,0.001]
[1762589127451,0.1468,3449.1,3449.0,0.4575]
[1762589128000,0.002,3449.1,3449.0,3.35689112]
[1762589128185,0.002,3449.1,3449.0,3.81499112]
[1762589131759,0.4875,3449.1,3449.0,0.001]
[1762589131964,1.0895,3449.1,3449.0,0.001]
[1762589134075,2.349212,3449.1,3449.0,0.001]
[1762589134280,3.24528951,3449.1,3449.0,0.001]
[1762589135569,1.98557751,3449.1,3449.0,0.001]
[1762589135899,1.98557751,3449.1,3449.0,0.4661]
[1762589135900,0.1468,3449.1,3449.0,0.4661]
[1762589136104,0.1468,3449.1,3449.0,3.83059112]
[1762589136105,0.002,3449.1,3449.0,3.83059112]
[1762589136607,0.002,3449.1,3449.0,3.85958503]
[1762589138708,0.002,3449.1,3449.0,3.83059112]
[1762589139294,0.002,3449.1,3449.0,4.51817028]
[1762589145282,0.002,3449.1,3449.0,4.05307028]
[1762589146601,0.002,3449.1,3449.0,3.36549112]
[1762589147596,0.002,3449.1,3449.0,3.83059112]
[1762589148997,0.002,3449.1,3449.0,3.36549112]
[1762589149876,0.002,3449.1,3449.0,3.83059112]
[1762589150787,0.002,3449.1,3449.0,3.85958503]
[1762589150989,0.002,3449.1,3449.0,4.52107798]
[1762589152210,0.002,3449.1,3449.0,4.55007189]
[1762589152386,0.002,3449.1,3449.0,4.52107798]
[1762589152588,0.002,3449.1,3449.0,4.55007189]
[1762589153599,0.002,3449.1,3449.0,4.52107798]
[1762589156898,0.002,3449.1,3449.0,4.55007189]
[1762589157102,0.002,3449.1,3449.0,4.66587798]
[1762589157412,0.002,3449.1,3449.0,4.69487189]
[1762589157612,0.002,3449.1,3449.0,5.10037589]
[1762589158251,1e-08,3449.2,3449.1,3.76991106]
[1762589158406,1e-08,3449.2,3449.1,5.87961106]
[1762589159647,1e-08,3449.2,3449.1,6.05340413]
[1762589159818,1e-08,3449.2,3449.1,6.02441106]
[1762589163741,1e-08,3449.2,3449.1,6.14052456]
[1762589167065,1e-08,3449.2,3449.1,6.02441106]
[1762589167234,1e-08,3449.2,3449.1,5.15380706]
[1762589167434,1e-08,3449.2,3449.1,4.59310706]
[1762589167638,1e-08,3449.2,3449.1,5.05820706]
[1762589167840,1e-08,3449.2,3449.1,5.61890706]
[1762589169661,1e-08,3449.2,3449.1,4.59310706]
[1762589170564,1e-08,3449.2,3449.1,5.05820706]
[1762589173682,0.48390001,3449.2,3449.1,4.59310706]
[1762589173884,0.95960001,3449.2,3449.1,4.59310706]
[1762589174250,0.95960001,3449.2,3449.1,3.04410706]
[1762589176886,0.95960001,3449.2,3449.1,3.50920706]
[1762589176887,1e-08,3449.2,3449.1,3.50920706]
[1762589177184,1e-08,3449.2,3449.1,3.60480706]
[1762589177687,1e-08,3449.2,3449.1,3.50920706]
[1762589178480,1e-08,3449.2,3449.1,3.04410706]
[1762589178783,0.95960001,3449.2,3449.1,3.04410706]
[1762589179373,1e-08,3449.2,3449.1,3.04410706]
[1762589179846,0.48390001,3449.2,3449.1,3.04510706]
[1762589180983,0.95960001,3449.2,3449.1,3.04510706]
[1762589181549,1e-08,3449.2,3449.1,3.04510706]
[1762589182685,0.95960001,3449.2,3449.1,3.04510706]
[1762589185384,0.48390001,3449.2,3449.1,3.04510706]
[1762589185557,0.95960001,3449.2,3449.1,3.04510706]
[1762589188191,0.48390001,3449.2,3449.1,3.04510706]
[1762589188763,0.95960001,3449.2,3449.1,3.04510706]
[1762589191566,0.48390001,3449.2,3449.1,3.04510706]
[1762589191786,1e-08,3449.2,3449.1,4.1207507]
[1762589192017,0.94950001,3449.2,3449.1,3.63965763]
[1762589192176,0.94950001,3449.2,3449.1,3.04510706]
[1762589193619,0.94950001,3449.2,3449.1,0.1458]
[1762589193907,0.94950001,3449.2,3449.1,0.001]
[1762589194068,0.97852505,3449.2,3449.1,0.001]
[1762589194272,4.15901906,3449.1,3449.0,0.001]
[1762589194497,4.15927126,3448.8,3448.7,0.001]
[1762589194723,4.60937126,3448.8,3448.7,0.001]
[1762589194873,5.10697126,3448.8,3448.7,0.001]
[1762589195072,5.1359963,3448.8,3448.7,0.001]
[1762589195797,2.207412,3448.8,3448.7,0.001]
[1762589196002,3.70211784,3448.8,3448.7,0.001]
[1762589196623,6.6016771,3448.8,3448.7,0.001]
[1762589197428,3.70211784,3448.8,3448.7,0.001]
[1762589198533,6.6016771,3448.8,3448.7,0.001]
[1762589199633,3.70211784,3448.8,3448.7,0.001]
[1762589200136,6.6016771,3448.8,3448.7,0.001]
[1762589200632,3.70211784,3448.8,3448.7,0.001]
[1762589201436,2.207412,3448.8,3448.7,0.001]
[1762589202303,1.23701434,3449.2,3448.7,0.001]
[1762589202304,1e-08,3449.2,3448.7,0.001]
[1762589202599,0.4948,3448.8,3448.7,2.90064334]
[1762589203020,0.9773,3448.8,3448.7,2.90064334]
[1762589203228,0.48250001,3449.2,3448.8,2.89955825]
[1762589203402,0.4948,3448.9,3448.8,2.89955825]
[1762589204042,0.9773,3448.9,3448.8,2.89955825]
[1762589204342,0.1448,3449.0,3448.8,2.89955825]
[1762589204539,0.4948,3448.9,3448.8,2.89955825]
[1762589204910,0.1448,3449.0,3448.9,2.89947519]
[1762589205107,0.6396,3449.0,3448.9,2.89947519]
[1762589205535,1.1221,3449.0,3448.9,2.89947519]
[1762589207118,0.6396,3449.0,3448.9,2.89947519]
[1762589207542,0.1448,3449.0,3448.9,2.89947519]
[1762589207746,1e-08,3449.2,3449.1,2.89930706]
[1762589207922,1e-08,3449.2,3449.1,3.36640706]
[1762589209329,1e-08,3449.2,3449.1,2.89930706]
[1762589210737,1e-08,3449.2,3449.1,3.36640706]
[1762589210939,1e-08,3449.2,3449.1,4.14118939]
[1762589211140,1e-08,3449.2,3449.1,4.81969632]
[1762589211742,1e-08,3449.2,3449.1,4.35259632]
[1762589211942,1e-08,3449.2,3449.1,4.84868939]
[1762589213774,1e-08,3449.2,3449.1,4.81969632]
[1762589214671,1e-08,3449.2,3449.1,4.35259632]
[1762589215863,1e-08,3449.2,3449.1,3.92910706]
[1762589216226,1e-08,3449.2,3449.1,3.46200706]
[1762589217974,1e-08,3449.2,3449.1,2.89930706]
[1762589218137,0.97730001,3449.2,3449.1,2.89930706]
[1762589220447,1e-08,3449.2,3449.1,3.36640706]
[1762589220789,1e-08,3449.2,3449.1,4.08859529]
[1762589222049,1e-08,3449.2,3449.1,4.11758836]
[1762589222279,1e-08,3449.2,3449.1,4.55239529]
[1762589222488,1e-08,3449.2,3449.1,3.99299529]
[1762589222662,1e-08,3449.2,3449.1,4.08859529]
[1762589223062,1e-08,3449.2,3449.1,4.55239529]
[1762589224380,1e-08,3449.2,3449.1,4.58138836]
[1762589224551,1e-08,3449.2,3449.1,4.55239529]
[1762589225779,1e-08,3449.2,3449.1,4.72618836]
[1762589226148,1e-08,3449.6,3449.5,2.89897086]
[1762589226484,0.002,3449.8,3449.5,13.51541257]
[1762589226789,1e-08,3449.9,3449.8,9.57827757]
[1762589226949,0.002,3450.5,3450.0,3.30405472]
[1762589227155,0.002,3450.5,3450.0,4.40874022]
[1762589228809,1e-08,3451.0,3450.9,3.36489477]
[1762589228971,1e-08,3451.0,3450.9,8.78144158]
[1762589229294,1e-08,3451.0,3450.9,10.18595358]
[1762589229799,1e-08,3451.0,3450.9,10.04115358]
[1762589230457,1e-08,3451.0,3450.9,11.60760489]
[1762589230657,1e-08,3451.0,3450.9,13.06975898]
[1762589231189,0.005,3451.9,3450.9,13.06975898]
[1762589231190,1e-08,3451.7,3450.9,13.63766995]
[1762589231391,0.002,3452.6,3452.1,3.30229146]
[1762589231592,0.002,3452.6,3452.1,5.12040346]
[1762589231756,0.002,3452.6,3452.1,6.70461113]
[1762589231955,0.002,3452.6,3452.1,6.67564326]
[1762589232356,0.002,3452.6,3452.1,6.79165035]
[1762589237290,0.007,3452.9,3452.8,2.89620018]
[1762589237594,0.002,3453.0,3452.9,4.5613323]
[1762589237797,0.002,3453.0,3452.9,6.62360146]
[1762589238219,0.002,3453.7,3453.6,2.8955293]
[1762589238405,0.002,3453.7,3453.6,3.3626293]
[1762589239636,0.002,3453.7,3453.6,3.5066293]
[1762589241028,0.9788,3453.7,3453.6,3.0395293]
[1762589241467,0.4985,3453.7,3453.6,3.0395293]
[1762589241762,0.002,3453.7,3453.6,3.0395293]
[1762589242325,0.002,3453.7,3453.6,4.10014479]
[1762589243427,0.002,3453.7,3453.6,4.12910008]
[1762589243633,0.002,3453.7,3453.6,4.10014479]
[1762589247159,0.002,3453.7,3453.6,3.63304479]
[1762589249188,0.002,3453.7,3453.6,4.10014479]
[1762589249546,0.002,3453.7,3453.6,4.12910008]
[1762589249750,0.002,3453.7,3453.6,4.53460408]
[1762589250001,0.002,3453.7,3453.6,4.96944879]
[1762589250384,1e-08,3454.1,3454.0,3.76779797]
[1762589250569,1e-08,3454.1,3454.0,4.57812231]
[1762589251383,1e-08,3454.1,3454.0,5.03362231]
[1762589253733,1e-08,3454.1,3454.0,4.57812231]
[1762589255679,1e-08,3454.1,3454.0,5.03362231]
[1762589257098,1e-08,3454.1,3454.0,12.43598036]
[1762589257278,0.002,3454.4,3454.3,4.56015853]
[1762589257483,0.002,3454.4,3454.3,7.57297971]
[1762589257728,0.002,3454.4,3454.3,7.54403029]
[1762589258140,0.002,3454.4,3454.3,8.84403029]
[1762589258288,1e-08,3454.9,3454.8,3.30002756]
[1762589258639,1e-08,3454.9,3454.8,4.22262756]
[1762589258926,0.77328482,3456.8,3456.7,2.89293256]
[1762589259085,0.005,3456.9,3456.7,2.89293256]
[1762589259086,0.1895,3456.9,3456.8,2.89284887]
[1762589259285,0.6534,3456.9,3456.8,2.89284887]
[1762589259595,1.1374,3456.9,3456.8,2.89284887]
[1762589261214,0.6735,3456.9,3456.8,3.4714291]
[1762589261446,0.005,3456.9,3456.8,3.9481291]
[1762589263605,0.005,3456.9,3456.8,3.9404291]
[1762589263811,0.005,3456.9,3456.8,3.4714291]
[1762589264521,0.005,3456.9,3456.8,3.9404291]
[1762589265829,1e-08,3456.9,3456.8,5.6056451]
[1762589266016,1e-08,3456.9,3456.8,6.11927358]
[1762589266221,1e-08,3456.9,3456.8,6.0903451]
[1762589266835,0.00200001,3456.9,3456.8,6.0903451]
[1762589267147,0.00200001,3456.9,3456.8,6.2343451]
[1762589267345,1e-08,3457.3,3457.2,5.20833017]
[1762589267641,1e-08,3457.3,3457.2,11.46602429]
[1762589267846,1e-08,3457.3,3457.2,11.95072429]
[1762589268145,1e-08,3457.3,3457.2,12.41482429]
[1762589271435,1e-08,3457.3,3457.2,11.74852429]
[1762589271758,1e-08,3457.3,3457.2,13.50191464]
[1762589272340,1e-08,3457.3,3457.2,7.38822052]
[1762589273068,1e-08,3457.3,3457.2,6.98271652]
[1762589273651,1e-08,3457.3,3457.2,6.83871652]
[1762589274052,1e-08,3457.3,3457.2,7.24422052]
[1762589274790,1e-08,3457.3,3457.2,6.83871652]
[1762589275340,1e-08,3457.3,3457.2,6.36971652]
[1762589275341,0.48000001,3457.3,3457.2,6.36971652]
[1762589275555,0.94410001,3457.3,3457.2,4.61632617]
[1762589275730,0.94410001,3457.3,3457.2,3.35661417]
[1762589275939,0.94410001,3457.3,3457.2,0.4641]
[1762589276263,0.94410001,3457.3,3457.2,3.35661417]
[1762589276450,0.94410001,3457.3,3457.2,2.89251417]
[1762589277349,0.94410001,3457.3,3457.2,3.76318012]
[1762589277754,0.94410001,3457.3,3457.2,2.89251417]
[1762589280074,0.48000001,3457.3,3457.2,2.89251417]
[1762589280278,0.94410001,3457.3,3457.2,2.89251417]
[1762589280958,0.48000001,3457.3,3457.2,2.89251417]
[1762589281293,1e-08,3457.3,3457.2,3.36581417]
[1762589281489,1e-08,3457.3,3457.2,4.05759654]
[1762589281890,0.96010001,3457.3,3457.2,3.58429654]
[1762589282091,0.96010001,3457.3,3457.2,2.89251417]
[1762589282498,0.47660001,3457.3,3457.2,2.89251417]
[1762589283071,0.96010001,3457.3,3457.2,2.89251417]
[1762589283667,0.47660001,3457.3,3457.2,3.03651417]
[1762589283869,1e-08,3457.3,3457.2,3.39473931]
[1762589284068,1e-08,3457.3,3457.2,4.46984906]
[1762589284259,1e-08,3457.3,3457.2,3.52124906]
[1762589284466,0.47660001,3457.3,3457.2,3.52124906]
[1762589284812,1e-08,3457.3,3457.2,3.52124906]
[1762589285168,1e-08,3457.3,3457.2,3.99454906]
[1762589285762,0.96010001,3457.3,3457.2,3.52124906]
[1762589285996,0.96010001,3457.3,3457.2,2.89251417]
[1762589286762,0.47660001,3457.3,3457.2,2.89251417]
[1762589287470,1e-08,3457.3,3457.2,2.89251417]
[1762589287898,1e-08,3457.3,3457.2,3.36581417]
[1762589288485,1e-08,3457.3,3457.2,2.89251417]
[1762589288665,1e-08,3457.3,3457.2,3.47112654]
[1762589289011,1e-08,3457.3,3457.2,4.34993054]
[1762589289398,0.96010001,3457.3,3457.2,3.47112654]
[1762589289586,0.96010001,3457.3,3457.2,2.89251417]
[1762589290668,0.96010001,3457.3,3456.9,0.001]
[1762589290872,0.4835,3457.2,3457.0,2.8926513]
[1762589291109,0.4835,3457.2,3456.9,0.001]
[1762589291308,0.4766,3457.0,3456.9,0.001]
[1762589291772,0.9601,3457.0,3456.9,0.001]
[1762589292803,0.9601,3457.0,3456.9,2.89376519]
[1762589293110,0.9601,3457.0,3456.9,0.001]
[1762589293904,1.1041,3457.0,3456.9,0.001]
[1762589296404,1.3404812,3457.0,3456.9,0.001]
[1762589297104,1.1041,3457.0,3456.9,0.001]
[1762589297309,1.1041,3457.0,3456.9,2.89376519]
[1762589298544,1.1041,3457.0,3456.9,0.001]
[1762589300217,1.1041,3457.0,3456.9,2.89376519]
[1762589301323,0.6206,3457.0,3456.9,2.89376519]
[1762589301534,1e-08,3457.3,3457.2,2.89251417]
[1762589301735,0.48350001,3457.3,3457.2,2.89251417]
[1762589302028,0.96010001,3457.3,3457.2,2.89251417]
[1762589302620,1e-08,3457.3,3457.2,2.89251417]
[1762589303017,1e-08,3457.3,3457.2,3.03651417]
[1762589303958,0.47660001,3457.3,3457.2,3.03651417]
[1762589304258,0.96010001,3457.3,3457.2,3.03651417]
[1762589305057,0.96010001,3457.3,3457.1,0.144]
[1762589305257,0.4835,3457.2,3457.1,0.144]
[1762589305466,0.9601,3457.2,3456.9,2.89370187]
[1762589305622,0.1784,3457.0,3456.9,2.89376519]
[1762589306131,0.6619,3457.0,3456.9,2.89376519]
[1762589306339,0.6619,3457.0,3456.9,0.001]
[1762589306524,0.6619,3457.0,3456.9,2.89376519]
[1762589308027,0.6619,3457.0,3456.9,0.001]
[1762589314683,3.91002631,3457.0,3456.9,0.001]
[1762589315046,1.0173448,3457.0,3456.9,0.001]
[1762589316067,3.91002631,3457.0,3456.9,0.001]
[1762589317994,3.93905135,3457.0,3456.9,0.001]
[1762589318166,3.91202631,3457.0,3456.9,0.001]
[1762589318508,2.89301625,3456.6,3456.5,0.001]
[1762589318801,3.36661625,3456.6,3456.5,0.001]
[1762589318966,3.81711625,3456.6,3456.5,0.001]
[1762589319607,4.25164529,3456.6,3456.5,0.001]
[1762589319806,5.88718595,3456.6,3456.5,0.001]
[1762589319963,5.88718595,3456.6,3456.2,0.001]
[1762589319964,2.89326736,3456.3,3456.2,0.001]
[1762589320168,3.1243924,3456.3,3456.2,0.001]
[1762589320507,3.5748924,3456.3,3456.2,0.001]
[1762589321406,3.95072106,3456.3,3456.2,0.001]
[1762589321704,4.32720002,3456.3,3456.2,0.001]
[1762589322004,5.52827647,3456.3,3456.2,0.001]
[1762589322206,5.15244781,3456.3,3456.2,0.001]
[1762589322401,6.41215981,3456.3,3456.2,0.001]
[1762589322591,6.78798847,3456.3,3456.2,0.001]
[1762589323406,6.78798847,3456.3,3455.1,0.005]
[1762589323407,0.405504,3456.1,3455.1,0.005]
[1762589323611,0.6487,3455.2,3455.1,0.005]
[1762589324040,4.01138846,3455.2,3455.1,0.005]
[1762589324213,1.1172,3455.2,3455.1,0.005]
[1762589325919,0.6487,3455.2,3455.1,0.005]
[1762589326320,1.1172,3455.2,3455.1,0.005]
[1762589327025,1.51832601,3455.2,3455.1,0.005]
[1762589327467,4.41251447,3455.2,3455.1,0.005]
[1762589327984,1.51832601,3455.2,3455.1,0.005]
[1762589328218,4.01138846,3455.2,3455.1,0.005]
[1762589329014,0.6487,3455.2,3455.1,0.005]
[1762589329601,1.1172,3455.2,3455.1,0.005]
[1762589330027,0.6487,3455.2,3455.1,0.005]
[1762589331440,0.4545,3455.2,3455.1,0.005]
[1762589331856,0.4685,3455.4,3455.1,2.89925145]
[1762589332710,0.4685,3455.4,3455.1,0.005]
[1762589333244,0.1942,3455.5,3455.1,0.005]
[1762589333442,0.6627,3455.5,3455.1,0.005]
[1762589334039,0.6627,3455.5,3455.1,2.89924089]
[1762589334402,0.1942,3455.5,3455.2,2.8941499]
[1762589334708,0.1942,3455.7,3455.4,0.4675]
[1762589334907,0.87533965,3456.0,3455.5,2.89388848]
[1762589334908,0.4685,3456.0,3455.5,2.89388848]
[1762589335106,0.6413212,3456.0,3455.5,2.89388848]
[1762589335304,0.1942,3455.9,3455.5,2.89388848]
[1762589335507,0.6627,3455.9,3455.5,2.89388848]
[1762589335739,1.922412,3455.9,3455.1,0.6768]
[1762589335902,1.922412,3455.9,3455.3,2.89409603]
[1762589336103,1.922412,3455.9,3455.1,0.6768]
[1762589336409,0.6627,3455.9,3455.5,2.89393714]
[1762589336759,0.4685,3455.8,3455.5,2.89393714]
[1762589337046,0.144,3455.7,3455.4,2.89400754]
[1762589338155,0.144,3455.7,3455.4,2.8939673]
[1762589338452,0.144,3455.7,3455.1,3.71504133]
[1762589338658,0.144,3455.7,3455.2,2.89412044]
[1762589338860,0.144,3455.7,3455.4,2.89395285]
[1762589339243,0.144,3455.7,3455.5,2.89393608]
[1762589339410,0.144,3455.7,3455.1,0.3436]
[1762589339615,0.144,3455.7,3455.3,3.37124661]
[1762589340148,0.144,3455.7,3455.5,2.89389497]
[1762589340345,0.144,3455.7,3455.5,2.89385547]
[1762589340547,0.144,3455.7,3455.6,2.89385345]
[1762589340717,0.144,3455.7,3455.6,3.36135345]
[1762589341357,0.144,3455.7,3455.6,0.4675]
[1762589341662,0.6209,3455.7,3455.1,0.95684727]
[1762589341844,0.6209,3455.7,3455.1,0.76324727]
[1762589341845,0.186,3455.6,3455.1,0.76324727]
[1762589342013,0.186,3455.6,3455.3,2.89409386]
[1762589342217,0.6626,3455.6,3455.1,0.15]
[1762589342417,0.6626,3455.6,3455.1,3.04426631]
[1762589342617,0.6626,3455.6,3455.3,2.894056]
[1762589343457,0.6626,3455.6,3455.2,2.8941637]
[1762589343955,0.4769,3455.3,3455.1,0.15]
[1762589344114,0.144,3455.3,3455.1,0.006]
[1762589344318,0.144,3455.3,3455.1,2.90019431]
[1762589344517,0.98252504,3455.2,3455.1,0.006]
[1762589344732,5.6730994,3455.2,3455.1,0.006]
[1762589348561,6.10762844,3455.2,3455.1,0.006]
[1762589348767,6.85911926,3455.2,3455.1,0.006]
[1762589350256,2.77891094,3455.2,3455.1,0.006]
[1762589350446,5.6730994,3455.2,3455.1,0.006]
[1762589350617,2.77891094,3455.2,3455.1,0.006]
[1762589350817,5.6730994,3455.2,3455.1,0.006]
[1762589351231,5.70212444,3455.2,3455.1,0.006]
[1762589352736,5.6730994,3455.2,3455.1,0.006]
[1762589352938,6.10762844,3455.2,3455.1,0.006]
[1762589353236,6.0786034,3455.2,3455.1,0.006]
[1762589353761,5.6730994,3455.2,3455.1,0.006]
[1762589354471,2.77891094,3455.2,3455.1,0.006]
[1762589354848,0.4769,3455.2,3455.1,0.006]
[1762589357747,0.4766,3455.5,3455.1,0.006]
[1762589358076,3.37059926,3455.5,3455.1,0.006]
[1762589358275,0.4766,3455.5,3455.1,0.006]
[1762589358445,0.4766,3455.4,3455.1,0.006]
[1762589359870,2.89393849,3455.5,3455.1,0.006]
[1762589360069,0.4766,3455.4,3455.1,0.006]
[1762589360268,1.259712,3455.6,3455.1,2.90022035]
[1762589360450,0.144,3455.3,3455.1,2.90022035]
[1762589360645,0.144,3455.3,3455.1,0.006]
[1762589361476,0.144,3455.3,3455.2,3.36288846]
[1762589361988,2.89353045,3456.0,3455.2,3.36288846]
[1762589361989,0.78051586,3456.5,3456.1,2.89343479]
[1762589362175,0.002,3456.6,3456.1,3.36213479]
[1762589362354,0.002,3456.6,3456.1,4.01413479]
[1762589363283,0.002,3456.6,3456.1,4.13004305]
[1762589364050,0.002,3456.6,3456.1,4.15897739]
[1762589364250,0.002,3456.6,3456.1,4.86423525]
[1762589364687,0.002,3456.6,3456.1,4.83530091]
[1762589365510,0.002,3456.6,3456.1,1.47906612]
[1762589365656,0.002,3456.6,3456.1,3.36213479]
[1762589366236,0.002,3457.4,3456.5,0.4687]
[1762589366490,0.002,3457.4,3457.2,3.55041417]
[1762589366853,0.002,3457.4,3457.2,4.01321417]
[1762589367091,0.002,3457.4,3457.2,4.04213931]
[1762589367287,0.002,3457.4,3457.2,4.86158633]
[1762589367687,0.002,3457.4,3457.2,4.83266119]
[1762589367986,0.002,3457.4,3457.2,4.97745531]
[1762589369320,0.002,3457.4,3457.2,4.94853017]
[1762589371891,0.002,3457.4,3457.2,5.09253017]
[1762589373601,0.002,3457.4,3457.2,4.62973017]
[1762589373825,0.002,3457.4,3457.2,5.12753017]
[1762589378745,0.002,3457.4,3457.2,4.62973017]
[1762589379321,0.002,3457.4,3457.2,5.88944217]
[1762589379521,0.002,3457.4,3457.2,4.62973017]
[1762589383247,0.002,3457.4,3457.2,4.44053017]
[1762589383545,0.94530001,3457.3,3457.2,0.11586898]
[1762589383849,0.94530001,3457.3,3457.1,2.89257801]
[1762589384050,0.94530001,3457.3,3457.2,2.89251417]
[1762589384751,0.94530001,3457.3,3456.9,0.25988643]
[1762589384752,0.94530001,3457.3,3456.9,3.15264833]
[1762589384924,0.4597,3457.0,3456.9,3.0367619]
[1762589385127,0.4597,3457.0,3455.6,2.89384019]
[1762589385128,0.943,3457.0,3455.6,2.89384019]
[1762589385329,0.3722,3456.8,3456.5,2.89309615]
[1762589385538,0.3722,3456.8,3456.4,0.8692616]
[1762589385539,0.3722,3456.8,3456.4,2.89310846]
[1762589385739,0.4387,3456.5,3456.2,0.144]
[1762589385941,0.4833,3456.7,3456.2,0.144]
[1762589386260,0.4833,3456.7,3456.2,3.03728497]
[1762589386261,0.462,3456.3,3456.2,3.03728497]
[1762589386552,0.37188967,3456.7,3456.5,2.89309278]
[1762589386553,0.4833,3456.7,3456.5,2.89309278]
[1762589386849,0.462,3456.6,3456.2,2.89332272]
[1762589387053,0.2073,3456.3,3456.2,2.89332272]
[1762589388740,0.144,3456.6,3456.2,2.89332272]
[1762589388741,0.144,3456.6,3456.3,2.89325696]
[1762589389053,0.1989,3456.9,3456.7,2.89291299]
[1762589389258,0.3429,3456.9,3456.7,2.89291299]
[1762589389431,0.462,3456.8,3456.7,2.89291299]
[1762589389630,0.462,3456.8,3456.3,0.001]
[1762589389631,0.462,3456.8,3456.6,2.89299953]
[1762589389832,0.9453,3456.8,3456.6,2.89299953]
[1762589390035,0.2073,3456.7,3456.3,0.001]
[1762589390233,0.462,3456.4,3456.3,0.001]
[1762589390628,0.9453,3456.4,3456.3,0.001]
[1762589391119,1.32913092,3456.4,3456.3,0.001]
[1762589391340,0.9453,3456.4,3456.3,0.001]
[1762589391727,3.83848365,3456.4,3456.3,0.001]
[1762589392956,0.9453,3456.4,3456.3,0.001]
[1762589393156,0.462,3456.4,3456.3,0.001]
[1762589393461,0.9453,3456.4,3456.3,0.001]
[1762589393835,0.462,3456.4,3456.3,0.001]
[1762589395066,0.462,3456.4,3456.3,2.89426736]
[1762589395558,0.462,3456.4,3456.3,0.001]
[1762589395956,0.4833,3456.7,3456.3,2.89426427]
[1762589396255,0.144,3456.6,3456.3,2.89426427]
[1762589396427,0.462,3456.4,3456.3,0.001]
[1762589397065,0.9453,3456.4,3456.3,0.001]
[1762589397358,0.144,3456.4,3456.3,3.34716736]
[1762589398159,0.1989,3456.9,3456.3,3.34716736]
[1762589398458,0.144,3456.6,3456.4,2.89318298]
[1762589398663,0.144,3456.6,3456.3,0.001]
[1762589398969,0.144,3456.6,3456.4,2.89318365]
[1762589399273,0.144,3456.6,3456.5,3.34599995]
[1762589399450,0.1989,3456.9,3456.5,0.4529]
[1762589399655,0.144,3456.8,3456.5,2.89306869]
[1762589400390,0.462,3456.6,3456.3,2.89426414]
[1762589400595,0.144,3456.8,3456.3,0.001]
[1762589400874,0.4833,3457.2,3456.4,0.4632]
[1762589401073,0.144,3457.0,3456.6,2.89300108]
[1762589401479,0.144,3457.0,3456.5,2.89307763]
[1762589401480,0.6153,3457.0,3456.5,2.89307763]
[1762589401779,0.6153,3457.0,3456.6,2.89300526]
[1762589401971,0.6153,3457.0,3456.5,2.89307931]
[1762589402177,0.6153,3457.0,3456.6,2.8930152]
[1762589402377,0.144,3457.0,3456.6,2.8930152]
[1762589402762,0.144,3457.0,3456.4,3.03717141]
[1762589402763,0.6153,3457.0,3456.4,0.144]
[1762589402970,0.481,3456.7,3456.6,2.89300786]
[1762589403169,0.481,3456.7,3456.3,0.001]
[1762589403679,0.4713,3456.6,3456.3,0.001]
[1762589403875,0.2016,3456.4,3456.3,0.001]
[1762589404377,0.2016,3456.4,3456.3,2.89426736]
[1762589406704,0.6729,3456.4,3456.3,0.001]
[1762589408176,3.92267612,3456.4,3456.3,0.001]
[1762589408385,1.02949247,3456.4,3456.3,0.001]
[1762589408586,0.2016,3456.4,3456.3,0.001]
[1762589409007,0.6729,3456.4,3456.3,0.001]
[1762589412407,0.2016,3456.4,3456.3,0.001]
[1762589412717,0.144,3456.5,3456.3,3.39256736]
[1762589413910,0.144,3456.5,3456.3,0.4993]
[1762589414227,0.144,3456.5,3456.3,3.39253595]
[1762589414409,0.144,3456.5,3456.4,2.89318365]
[1762589414918,0.144,3456.5,3456.3,2.89425138]
[1762589415233,0.144,3456.5,3456.4,2.89318365]
[1762589415600,0.144,3456.5,3456.3,0.001]
[1762589415806,0.144,3456.5,3456.4,2.89318365]
[1762589416228,1.0963,3456.5,3456.3,0.001]
[1762589416527,0.2016,3456.4,3456.3,2.89426736]
[1762589417435,0.144,3456.5,3456.3,2.89426736]
[1762589417622,0.481,3456.4,3456.3,2.89426736]
[1762589421551,0.481,3456.4,3456.3,0.001]
[1762589421757,0.9523,3456.4,3456.3,0.001]
[1762589422944,0.481,3456.4,3456.3,0.001]
[1762589423256,0.9523,3456.4,3456.3,0.001]
[1762589424469,0.144,3456.5,3456.3,3.39251733]
[1762589425357,0.481,3456.4,3456.3,0.001]
[1762589425558,0.481,3456.4,3456.3,2.89426736]
[1762589429665,0.144,3456.5,3456.3,2.89426736]
[1762589429968,0.481,3456.4,3456.3,2.89426736]
[1762589430330,0.481,3456.4,3456.3,0.001]